Cogmind - Beta 10.2 @@@ ROGUE MODE // 2021.09.17 @ 20:22:37 Player: willow Result: Destroyed by S-10 Pest with Light Assault Rifle Performance ------------- Evolutions (0) 0 Regions Visited (1) 200 Robots Destroyed (9) 45 Value Destroyed (236) 236 Prototype IDs (2) 40 Alien Tech Used (0) 0 Bonus (0) 0 TOTAL SCORE: 521 Bonus ------- None Cogmind --------- Core Integrity 0/250 Matter 295/300 Energy 500/500 System Corruption 0% Temperature Cool (0) Movement Core (150) Ox2 Location -10/Materials Parts ------- > --- POWER (1) -------- (None) > --- PROPULSION (2) --- (None) > --- UTILITY (2) ------ High-capacity Battery > --- WEAPON (2) ------- Assault Rifle Assault Rifle > --- INVENTORY (4) ---- Structural Scanner Peak State ------------ > --- POWER ------------ Light Ion Engine > --- PROPULSION ------- Improved Aluminum Leg Improved Aluminum Leg > --- UTILITY ---------- Heat Sink Hardened Light Armor Plating > --- WEAPON ----------- EM Pulse Gun Medium Laser > --- INVENTORY -------- Light Assault Rifle [Rating: 10] Favorites ----------- Power Light Ion Engine Engine Light Ion Engine Propulsion Improved Aluminum Leg Leg Improved Aluminum Leg Wheel Wheel Utility High-capacity Battery Device Reclamation Unit Storage High-capacity Battery Protection Hardened Light Armor Plating Weapon Assault Rifle Energy Gun EM Pulse Gun Ballistic Gun Assault Rifle Launcher Grenade Launcher Build | -11 -10 ------- Run | Scr Mat Slots Evolved . | . . Power . | . . Propulsion . | . . Utility . | . . Weapon . | . . Parts Attached 18 | 6 12 Power 2 | 1 1 Engine 2 | 1 1 Core . | . . Reactor . | . . Propulsion 6 | 2 4 Treads . | . . Leg 4 | . 4 Wheel 2 | 2 . Hover . | . . Flight . | . . Utility 4 | 1 3 Device 2 | 1 1 Storage 1 | . 1 Processor . | . . Hackware . | . . Protection 1 | . 1 Artifact . | . . Weapon 6 | 2 4 Energy Gun 2 | 2 . Energy Cannon . | . . Ballistic Gun 3 | . 3 Ballistic Cannon . | . . Launcher 1 | . 1 Special Weapon . | . . Impact Weapon . | . . Slashing Weapon . | . . Piercing Weapon . | . . Special Melee Weapon . | . . Unidentified Prototypes . | . . Parts Lost 13 | . 13 Power 2 | . 2 Propulsion 4 | . 4 Utility 3 | . 3 Weapon 4 | . 4 Highest Loss Streak 4 | . 4 Average Slot Usage (%) 62 | . 62 Engine 5 | . 5 Leg 14 | . 14 Device 10 | . 10 Storage 8 | . 8 Protection 5 | . 5 Energy Gun 4 | . 4 Ballistic Gun 9 | . 9 Launcher 1 | . 1 Naked Turns . | . . Heaviest Build 14 | 8 14 Greatest Support 26 | 20 26 Greatest Overweight (x) 4 | . 4 Average Overweight (x) . | . . Largest Inventory Capacity 4 | 4 4 Average Capacity 4 | 4 4 Most Carried 3 | 2 3 Average Carried . | . . Final Capacity 4 | 4 4 Final Carried 1 | 1 1 Class Distribution -------------------- 100% | Mutant Dominant Class ---------------- Mutant | -10/Materials Resources | -11 -10 ----------- Run | Scr Mat Matter Collected 418 | 260 158 Remotely . | . . Salvage Created 273 | 50 223 Parts 18 | 1 17 Haulers Intercepted . | . . Recyclers Shooed . | . . Parts Field Recycled . | . . Retrieved Matter . | . . Parts Self-Destructed . | . . Prevented . | . . Kills | -11 -10 ------- Run | Scr Mat Combat Hostiles Destroyed 8 | 1 7 Guns 8 | 1 7 Classes Destroyed 3 | 1 2 Watcher 1 | . 1 Swarmer 3 | . 3 Grunt 5 | 1 4 Best Kill Streak 3 | 1 3 Combat Bots Only 3 | 1 3 Max Kills in Single Turn 1 | 1 1 Gunslinging . | . . Exploded . | . . Melee . | . . Uniques/NPCs Destroyed . | . . Combat | -11 -10 -------- Run | Scr Mat Damage Taken 1398 | 44 1354 Core 252 | . 252 Absorbed by Shields . | . . Core Remaining (%) 100 | 100 . Volleys Fired 41 | 4 37 Largest 2 | 2 2 Hottest 90 | 90 90 Shots Fired 59 | 8 51 Gun 57 | 8 49 Cannon . | . . Launcher 2 | . 2 Special . | . . Kinetic 40 | . 40 Thermal 5 | 4 1 Explosive 2 | . 2 Electromagnetic 12 | 4 8 Robot Hit Streak 9 | 6 9 Robot Miss Streak 6 | . 6 Penetration Max . | . . Secondary Targets . | . . Shots Hit Robots 30 | 6 24 Core Hits 15 | 2 13 Critical Hits . | . . Critical Kills . | . . Critical Parts Destroyed . | . . Melee Attacks . | . . Impact . | . . Slashing . | . . Piercing . | . . Sneak Attacks . | . . Combat Hostiles . | . . Follow-up Attacks . | . . Damage Inflicted 368 | 75 293 Guns 313 | 75 238 Cannons . | . . Explosions 55 | . 55 Melee . | . . Ramming . | . . Kinetic 192 | . 192 Thermal 38 | 38 . Explosive 55 | . 55 Electromagnetic 83 | 37 46 Impact . | . . Slashing . | . . Piercing . | . . Highest Corruption . | . . Average Corruption . | . . Corruption Purged . | . . Overload Shots . | . . Overflow Damage . | . . Projectiles . | . . Explosions . | . . Melee . | . . Knockbacks . | . . Impact . | . . Kinetic . | . . Secondary . | . . Self-Inflicted Damage . | . . Shots . | . . Rammed . | . . Targets Rammed . | . . Kicked . | . . Crushed . | . . Highest Temperature 78 | 78 15 Average Temperature 23 | 41 4 Received Heat Transfer 378 | 24 354 Siege Activations . | . . Robots Corrupted . | . . Combat Hostiles . | . . Parts Fried . | . . Impact Corruptions . | . . Robots Melted . | . . Combat Hostiles . | . . Parts Melted . | . . Heat Transferred 111 | 111 . Parts Sabotaged . | . . Parts Stolen . | . . Parts Stripped . | . . Power Chain Reactions . | . . Missiles Intercepted . | . . Alert | -11 -10 ------- Run | Scr Mat Peak Influence 170 | 20 170 Initial 13 | . 13 Average 74 | 5 86 Maximum Alert Level . | . . Low Security (%) 100 | 100 100 Level 1 . | . . Level 2 . | . . Level 3 . | . . Level 4 . | . . Level 5 . | . . High Security . | . . Max Security . | . . Squads Dispatched 2 | . 2 Investigation . | . . Extermination . | . . Reinforcement 2 | . 2 Assault . | . . Garrison . | . . Intercept . | . . Construction Impeded . | . . Haulers Reinforced . | . . Stealth | -11 -10 --------- Run | Scr Mat Distress Signals 1 | . 1 Communications Jammed . | . . Distress Signals . | . . Times Spotted 18 | 1 17 Peak Tracking Total 6 | 1 6 Tactical Retreats 2 | . 2 Traps | -11 -10 ------- Run | Scr Mat Traps Triggered . | . . Indirectly . | . . Trap Hack Attempts . | . . Triggered . | . . Disarmed . | . . Reprogrammed . | . . Reused . | . . Traps Extracted . | . . Installed . | . . Triggered . | . . Machines | -11 -10 ---------- Run | Scr Mat Machines Disabled 2 | . 2 Max in Single Turn 1 | . 1 Machines Sabotaged . | . . Garrisons Compromised . | . . Overloaded Fab Kills . | . . Fab Network Shutdowns . | . . Hacking | -11 -10 --------- Run | Scr Mat Machines Accessed 2 | . 2 Terminals 2 | . 2 Fabricators . | . . Repair Stations . | . . Recycling Units . | . . Scanalyzers . | . . Garrison Access . | . . Total Hacks 6 | . 6 Successful 4 | . 4 Failed 2 | . 2 Catastrophic . | . . Database Lockouts . | . . Manual . | . . Terminals 6 | . 6 Fabricators . | . . Repair Stations . | . . Recycling Units . | . . Scanalyzers . | . . Garrison Access . | . . Terminal Hacks 4 | . 4 Prototype ID Bank 1 | . 1 Alert Level 2 | . 2 Dispatch Records 1 | . 1 Fabricator Hacks . | . . Repair Station Hacks . | . . Recycling Unit Hacks . | . . Scanalyzer . | . . Garrison Access Hacks . | . . Unauthorized Hacks . | . . Terminals . | . . Fabricators . | . . Repair Stations . | . . Recycling Units . | . . Scanalyzers . | . . Garrison Access . | . . Data Cores Recovered . | . . Used . | . . Hacking Detections 1 | . 1 Full Trace Events . | . . Feedback Events . | . . Feedback Blocked . | . . Robot Schematics Acquired . | . . Robots Built . | . . Matter . | . . Time . | . . Total Robot Build Rating . | . . Part Schematics Acquired . | . . Parts Built . | . . Matter . | . . Time . | . . Total Part Build Rating . | . . Parts Repaired . | . . Time . | . . Parts Recycled . | . . Recycled Matter . | . . Retrieved Matter . | . . Retrieved Components . | . . Parts Scanalyzed . | . . Part Schematics Acquired . | . . Parts Damaged . | . . Bothacking | -11 -10 ------------ Run | Scr Mat Used RIF Installer . | . . Robots Hacked . | . . Non-combat . | . . Combat . | . . Robot Hacks Applied . | . . Relay Couplers Released . | . . Robots Rewired . | . . Allies Hacked . | . . Hacks Repelled . | . . Allies | -11 -10 -------- Run | Scr Mat Total Allies . | . . Largest Group . | . . Highest-Rated Group . | . . Highest-Rated Ally . | . . Total Orders . | . . Ally Attacks . | . . Total Damage . | . . Kills . | . . Allies Corrupted . | . . Allies Melted . | . . Intel | -11 -10 ------- Run | Scr Mat Robot Analysis Total . | . . Derelict Logs Recovered . | . . Drone Launches . | . . Drone Recoveries . | . . Exploration | -11 -10 ------------- Run | Scr Mat Turns Passed 663 | 96 567 Spaces Moved 410 | 97 313 Core 91 | 20 71 Treads . | . . Legs 218 | . 218 Wheels 101 | 77 24 Hover . | . . Flight . | . . Fastest Speed 50 | 50 80 Average Speed 110 | 73 121 Slowest Speed 250 | 80 250 Overloaded Moves . | . . Propulsion Burnouts . | . . Robots Hopped . | . . Cave-ins Triggered . | . . Exploration Rate (%) 20 | 7 33 Regions Visited 1 Branch Regions . Pre-discovered Areas . | . . Known Exits Taken . | . . Unknown Exits Taken 1 | 1 . Scrap Searched . | . . Spaces Dug . | . . Terrain Destroyed 11 | . 11 Melee . | . . Projectile . | . . AOE 11 | . 11 Terrain Rammed . | . . Walls Destroyed . | . . Machines Disabled . | . . Actions | -11 -10 --------- Run | Scr Mat Total 566 | 113 453 Wait 77 | . 77 Move 409 | 96 313 Hop . | . . Pick Up 19 | 7 12 Fast Attach . | . . Attach 18 | 6 12 Detach . | . . Swap . | . . Drop 2 | . 2 Fire 41 | 4 37 Melee . | . . Ram . | . . Kick . | . . Crush . | . . Escape Stasis . | . . Rewire . | . . Trap . | . . Miscellaneous . | . . Route ------- -11/Scrapyard -10/Materials History --------- Turn | Location | Event 2 | -11/Scrapyard | Met Revision 17 61 | -11/Scrapyard | Discovered new exit (range 8) 97 | -11/Scrapyard | Entered Materials 318 | -10/Materials | Build established: Mutant 337 | -10/Materials | Lost 4 parts (1p2n1u) 404 | -10/Materials | Core integrity fell below 50% 542 | -10/Materials | Core integrity fell below 20% 664 | -10/Materials | Destroyed by S-10 Pest with Light Assault Rifle Last Messages --------------- 00584_ Acquired Ion Engine. 00587_ Acquired 46 matter. 00617_ Connecting with Terminal... 00630_ K-01 Serf cleans the Matter Pump. 00634_ K-01 Serf collects debris. 00638_ O-16 Technician: "IFF HANDSHAKE FAILED. SECURING TERMINAL." 00638_ K-01 Serf collects debris. 00644_ ALERT: Hostiles spotted, dispatching reinforcements to Terminal M006. 00644_ K-01 Serf collects debris. 00647_ K-01 Serf cleans the Matter Pump. 00647_ K-01 Serf collects debris. 00651_ K-01 Serf cleans the Matter Pump. 00655_ Imp. Aluminum Leg destroyed. 00655_ Reclaimed 10 matter. 00658_ K-01 Serf cleans the Matter Pump. 00660_ Ion Engine destroyed. 00660_ Reclaimed 10 matter. 00663_ Reclamation Unit destroyed. [Achievement: First Step to Greatness] Map ----- +----------------------------------------------------+ | ?????????????????????????????????????????????????? | | ?????????????????????????????????????????????????? | | ?????????????????????????????????????????????????? | | ?????????????????????????????????????????????????? | | ?????????????????????????????????????????????????? | | ?????????????????????????????????????????????????? | | ?????????????????????????????????????????????????? | | ?????????????????????????????????????????????????? | | ?????????????????????????????????????????????????? | | ?????????????????????????????????????????????????? | | ??????????????????##?##??????????????????????????? | | ?????????????????# ? #?????????????????????????? | | ????????????????? ?????????????????????????? | | ????????????????? T ?????????????????????????? | | ?????????????????? ??????????????????????????? | | ?????????????????? ??????????????????????????? | | ??????????????????# #??????????????????????????? | | ??????????????????# #? ??????????????????????? | | ??????????????????+ +? ?????????#????????????? | | ??????????????????# #? ???????? #????????????? | | ??????????????????# #? ??????? #????????????? | | ??########????????# #?#+#?????? #????????????? | | ??# """^ #????????# ### ####### k#????????????? | | ??# "T" ##########k t #????????????? | | ??# # s s #????????????? | | ??# ! + @s ????????? | | ??# # a !!### ????????? | | ??# ! | # !!! !!!#??????????????????? | | ??######## !!! """ !! #?##+##????????????? | | ????#^ !! """ # ????????????? | | ????# """ % # """"?????????????? | | ????# k %+ """"?????????????? | | ????#^^ # """"?????????????? | | ????# #?? ????????????? | | ????# ############ #????? |???????????? | | ????# #?### #### o ##########?????????? | | ????# #???####???# ## T #?????????? | | ????# ! ########???# r+ #?????????? | | ????# ! ## #???# ### #?????????? | | ????# #???# #?# """ #?????????? | | ????# T #???# #?# """ #?????????? | | ????# #???# #?# "" #?????????? | | ????############ #???# #?# #?????????? | | ???????????????## ##???# #?# "" #?????????? | | ????????????????# #????# #?# """ #?????????? | | ????????????????# #????# ### """ #?????????? | | ????????????????# ^ #????# + #?? #?????? | | ????????????????# #????# ######/#### #?????? | | ???????????????? #????# # +?????? | | ???????????????? #????# ### #?????? | +----------------------------------------------------+ Best States ------------- Heat Dissipation 35 Energy Generation 10 Energy Capacity 650 Matter Stores 300 Matter Capacity 300 Sight Range 16 Terrain Scan Density 10 Armor Coverage 150 Reclamation Efficiency 10 Evasion (%) 50 Item Schematics ----------------- None Robot Schematics ------------------ None Fabricated ------------ Nothing Alien Tech Used ----------------- None Achievements -------------- First Step to Greatness Storm Trooper Challenges ------------ None Game ------ Seed MiniArmageddonSystem Manual? 0 Play Time 00:15:07 Cumulative 0.4 hours Start 2021.09.17 @ 20:07:02 End 2021.09.17 @ 20:22:37 Sessions 1 Manual Loads 0 Difficulty Rogue Special Mode None Game No. 1 Rogue 1 Adventurer 0 Explorer 0 Win Type - Total 0 Types 0/0/0/0/0/0/0/0/0 Lore% 0 Gallery% 2 Achievement% 1 Wizard Run 0 Options --------- ASCII 0 Keyboard 0 Movement Mouse Keybinds 0 Fullscreen 2 Font 18/CogWide Map View 76x50 Tactical HUD 1 Map Filters NONE Filters NONE Steam 1 RUN: ca04f36c-d020-4296-b9d8-beaa11813cec